Cogmind - Beta 12 X6 @@@ ROGUE MODE // 2023.02.20 @ 15:55:58 // Winter2019/RPGLIKE Player: ArabianSandBoa Result: Destroyed by G-34 Mercenary with Small Laser Performance ------------- Evolutions (0) 0 Regions Visited (1) 200 Robots Destroyed (10) 50 Value Destroyed (240) 240 Prototype IDs (0) 0 Alien Tech Used (0) 0 Bonus (0) 0 TOTAL SCORE: 490 Bonus ------- None Cogmind --------- Core Integrity 0/600 Matter 292/300 Energy 98/100 System Corruption 0% Temperature Cool (6) Movement Core (50) Location -10/Materials Parts ------- > --- POWER (1) -------- (None) > --- PROPULSION (1) --- (None) > --- UTILITY (4) ------ Structural Scanner Signal Interpreter Transport Network Coupler > --- WEAPON (2) ------- Light Assault Rifle Light Assault Rifle > --- INVENTORY (0) ---- (None) Peak State ------------ > --- POWER ------------ Backup Power I > --- PROPULSION ------- Backup Propulsion I > --- UTILITY ---------- Structural Scanner Transport Network Coupler Backup Plating I Backup Plating I > --- WEAPON ----------- Light Assault Rifle Light Assault Rifle > --- INVENTORY -------- (None) [Rating: 8] Favorites ----------- Power Backup Power I Engine Backup Power I Propulsion Backup Propulsion I Hover Unit Backup Propulsion I Utility Backup Plating I Device Structural Scanner Processor Transport Network Coupler Protection Backup Plating I Weapon Light Assault Rifle Energy Gun EM Pulse Gun Ballistic Gun Light Assault Rifle Build | -11 -10 ------- Run | Jun Mat Slots Evolved 4 | 4 . Power . | . . Propulsion . | . . Utility 3 | 3 . Weapon 1 | 1 . Parts Attached 6 | 2 4 Power . | . . Engine . | . . Core . | . . Reactor . | . . Propulsion . | . . Treads . | . . Leg . | . . Wheel . | . . Hover . | . . Flight . | . . Utility 3 | . 3 Device 1 | . 1 Storage . | . . Processor 2 | . 2 Hackware . | . . Protection . | . . Artifact . | . . Weapon 3 | 2 1 Energy Gun 1 | 1 . Energy Cannon . | . . Ballistic Gun 2 | 1 1 Ballistic Cannon . | . . Launcher . | . . Special Weapon . | . . Impact Weapon . | . . Slashing Weapon . | . . Piercing Weapon . | . . Special Melee Weapon . | . . Unidentified Prototypes . | . . Parts Lost 3 | . 3 Power 1 | . 1 Propulsion 1 | . 1 Utility 1 | . 1 Weapon . | . . Highest Loss Streak 3 | . 3 To Critical Strikes . | . . Average Slot Usage (%) 88 | . 88 Engine 11 | . 11 Hover 11 | . 11 Device 7 | . 7 Processor 12 | . 12 Protection 20 | . 20 Energy Gun 4 | . 4 Ballistic Gun 20 | . 20 Naked Turns . | . . Heaviest Build 6 | 3 6 Greatest Support 6 | 3 6 Greatest Overweight (x) . | . . Average Overweight (x) . | . . Largest Inventory Capacity . | . . Average Capacity . | . . Most Carried . | . . Average Carried . | . . Final Capacity . | . . Final Carried . | . . Class Distribution -------------------- 100% | Mutant Dominant Class ---------------- Mutant | -10/Materials Resources | -11 -10 ----------- Run | Jun Mat Matter Collected 333 | 39 294 Remotely . | . . Salvage Created 326 | . 326 Parts 23 | . 23 Haulers Intercepted 1 | . 1 Recyclers Shooed . | . . Parts Field Recycled . | . . Retrieved Matter . | . . Parts Self-Destructed . | . . Prevented . | . . Kills | -11 -10 ------- Run | Jun Mat Combat Hostiles Destroyed 8 | . 8 Guns 8 | . 8 Classes Destroyed 4 | . 4 Worker 1 | . 1 Hauler 1 | . 1 Swarmer 2 | . 2 Grunt 6 | . 6 Best Kill Streak 5 | . 5 Combat Bots Only 5 | . 5 Max Kills in Single Turn 2 | . 2 Gunslinging . | . . Exploded . | . . Melee . | . . Uniques/NPCs Destroyed . | . . Combat | -11 -10 -------- Run | Jun Mat Damage Taken 1026 | . 1026 Core 785 | . 785 Absorbed by Shields . | . . Redirected to Core 548 | . 548 Core Remaining (%) 100 | 100 . Volleys Fired 47 | . 47 Largest 2 | . 2 Hottest 60 | . 60 Shots Fired 94 | . 94 Gun 94 | . 94 Cannon . | . . Launcher . | . . Special . | . . Kinetic 89 | . 89 Thermal . | . . Explosive . | . . Electromagnetic 5 | . 5 Robot Hit Streak 13 | . 13 Robot Miss Streak 6 | . 6 Penetration Max . | . . Secondary Targets 2 | . 2 Max Gunslinging Chain 1 | . 1 Shots Hit Robots 55 | . 55 Core Hits 21 | . 21 Critical Kills 2 | . 2 Critical Parts Destroyed 2 | . 2 Critical Strikes 4 | . 4 Destroy 4 | . 4 Melee Attacks . | . . Impact . | . . Slashing . | . . Piercing . | . . Sneak Attacks . | . . Combat Hostiles . | . . Follow-up Attacks . | . . Damage Inflicted 519 | . 519 Guns 519 | . 519 Cannons . | . . Explosions . | . . Melee . | . . Ramming . | . . Kinetic 482 | . 482 Thermal . | . . Explosive . | . . Electromagnetic 37 | . 37 Impact . | . . Slashing . | . . Piercing . | . . Highest Corruption . | . . Average Corruption . | . . Corruption Purged . | . . Corruption Blocked . | . . Overload Shots . | . . Overflow Damage . | . . Projectiles . | . . Explosions . | . . Melee . | . . Knockbacks . | . . Impact . | . . Kinetic . | . . Secondary . | . . Self-Inflicted Damage . | . . Shots . | . . Rammed . | . . Targets Rammed . | . . Kicked . | . . Crushed . | . . Highest Temperature 41 | . 41 Average Temperature 12 | . 12 Received Heat Transfer 432 | . 432 Siege Activations . | . . Robots Corrupted . | . . Combat Hostiles . | . . Parts Fried . | . . Impact Corruptions . | . . Robots Melted . | . . Combat Hostiles . | . . Parts Melted . | . . Heat Transferred . | . . Parts Sabotaged . | . . Parts Stolen . | . . Parts Stripped . | . . Power Chain Reactions . | . . Missiles Intercepted . | . . Alert | -11 -10 ------- Run | Jun Mat Peak Influence 238 | . 238 Initial . | . . Average 91 | . 95 Maximum Alert Level 1 | . 1 Low Security (%) 91 | 100 90 Level 1 8 | . 9 Level 2 . | . . Level 3 . | . . Level 4 . | . . Level 5 . | . . High Security . | . . Max Security . | . . Squads Dispatched 2 | . 2 Investigation 2 | . 2 Extermination . | . . Reinforcement . | . . Assault . | . . Garrison . | . . Intercept . | . . Searches Triggered . | . . Construction Impeded . | . . Haulers Reinforced . | . . Active Scanning Responses . | . . Cargo Convoy Interrupts . | . . Stealth | -11 -10 --------- Run | Jun Mat Distress Signals 1 | . 1 Communications Jammed . | . . Distress Signals . | . . Times Spotted 17 | . 17 Peak Tracking Total 7 | . 7 Tactical Retreats . | . . Traps | -11 -10 ------- Run | Jun Mat Traps Triggered 1 | . 1 Indirectly . | . . Trap Hack Attempts . | . . Triggered . | . . Disarmed . | . . Reprogrammed . | . . Reused . | . . Traps Extracted . | . . Installed . | . . Triggered . | . . Machines | -11 -10 ---------- Run | Jun Mat Machines Disabled . | . . Max in Single Turn . | . . Machines Repaired . | . . Machines Sabotaged . | . . Overloaded Fab Kills . | . . Hacking | -11 -10 --------- Run | Jun Mat Machines Accessed 2 | . 2 Terminals 1 | . 1 Fabricators . | . . Repair Stations 1 | . 1 Recycling Units . | . . Scanalyzers . | . . Garrison Access . | . . Total Hacks 9 | . 9 Successful 4 | . 4 Failed 4 | . 4 Catastrophic 1 | . 1 Database Lockouts 1 | . 1 Manual 6 | . 6 Terminals 5 | . 5 Fabricators . | . . Repair Stations 4 | . 4 Recycling Units . | . . Scanalyzers . | . . Garrison Access . | . . Terminal Hacks 1 | . 1 Robot Analysis 1 | . 1 Fabricator Hacks . | . . Repair Station Hacks 1 | . 1 Refit 1 | . 1 Recycling Unit Hacks . | . . Scanalyzer . | . . Garrison Access Hacks . | . . Unauthorized Hacks 2 | . 2 Terminals 2 | . 2 Botnet 1 | . 1 Search 1 | . 1 Fabricators . | . . Repair Stations . | . . Recycling Units . | . . Scanalyzers . | . . Garrison Access . | . . Data Cores Recovered . | . . Used . | . . Hacking Detections 2 | . 2 Full Trace Events 1 | . 1 Feedback Events . | . . Feedback Blocked . | . . Robot Schematics Acquired . | . . Robots Built . | . . Authchips . | . . Time . | . . Total Robot Build Rating . | . . Part Schematics Acquired . | . . Parts Built . | . . Authchips . | . . Time . | . . Total Part Build Rating . | . . Parts Repaired . | . . Time . | . . Parts Recycled . | . . Recycled Matter . | . . Retrieved Matter . | . . Retrieved Components . | . . Parts Scanalyzed . | . . Part Schematics Acquired . | . . Parts Damaged . | . . Bothacking | -11 -10 ------------ Run | Jun Mat Used RIF Installer . | . . Robots Hacked . | . . Non-combat . | . . Combat . | . . Robot Hacks Applied . | . . Relay Couplers Released . | . . Fabnet Peak Effective % . | . . Robots Rewired . | . . Allies Hacked . | . . Hacks Repelled . | . . Allies | -11 -10 -------- Run | Jun Mat Total Allies . | . . Largest Group . | . . Highest-Rated Group . | . . Highest-Rated Ally . | . . Total Orders . | . . Ally Attacks . | . . Total Damage . | . . Kills . | . . Allies Corrupted . | . . Allies Melted . | . . Intel | -11 -10 ------- Run | Jun Mat Robot Analysis Total 1 | . 1 Derelict Logs Recovered . | . . Drone Launches . | . . Drone Recoveries . | . . Exploration | -11 -10 ------------- Run | Jun Mat Turns Passed 399 | 15 384 Spaces Moved 202 | 23 179 Core 28 | 23 5 Treads . | . . Legs . | . . Wheels . | . . Hover 174 | . 174 Flight . | . . Fastest Speed 50 | 50 50 Average Speed 75 | 50 79 Slowest Speed 80 | 50 80 Overloaded Moves . | . . Propulsion Burnouts . | . . Robots Hopped . | . . Cave-ins Triggered . | . . Exploration Rate (%) 19 | 4 34 Regions Visited 1 Branch Regions . Pre-discovered Areas . | . . Known Exits Taken . | . . Unknown Exits Taken 1 | 1 . Scrap Searched . | . . Spaces Dug . | . . Terrain Destroyed . | . . Melee . | . . Projectile . | . . AOE . | . . Terrain Rammed . | . . Walls Destroyed . | . . Machines Disabled . | . . Actions | -11 -10 --------- Run | Jun Mat Total 370 | 24 346 Wait 106 | . 106 Move 201 | 22 179 Hop . | . . Pick Up . | . . Fast Attach 6 | 2 4 Attach . | . . Detach . | . . Swap . | . . Drop 2 | . 2 Fire 47 | . 47 Melee . | . . Ram . | . . Kick . | . . Crush . | . . Escape Stasis . | . . Rewire . | . . Trap . | . . Miscellaneous 8 | . 8 Route ------- -11/Junkyard -10/Materials (discovered 1 exit: [*Min]) History --------- Turn | Location | Event 1 | -11/Junkyard | Upgraded with Utility slot (x3) 1 | -11/Junkyard | Upgraded with Weapon slot (x1) 9 | -11/Junkyard | Discovered new exit (range 14) 16 | -11/Junkyard | Entered Materials 137 | -10/Materials | Central database locked down 314 | -10/Materials | Build established: Mutant 335 | -10/Materials | Discovered new exit (range 17) 375 | -10/Materials | Core integrity fell below 50% 388 | -10/Materials | Core integrity fell below 20% 400 | -10/Materials | Destroyed by G-34 Mercenary with Small Laser Last Messages --------------- 00365_ Switching to secondary target: G-47 Trooper. 00365_ K-01 Serf collects debris. 00372_ G-47 Trooper suffers critical hit (Destroy). 00372_ Destroyed Aluminum Leg. 00372_ M-13 Machinist repairs K-01 Serf. 00374_ R-06 Scavenger collects Sml. Laser. 00374_ R-06 Scavenger destroyed. 00375_ K-01 Serf collects debris. 00377_ Acquired 38 matter. 00378_ K-01 Serf collects debris. 00379_ M-13 Machinist repairs G-47 Trooper. 00381_ S-10 Pest destroyed. 00381_ Switching to secondary target: G-47 Trooper. 00383_ M-13 Machinist fits Backup Propulsion I on G-47 Trooper. 00383_ Backup Plating I destroyed. 00385_ Backup Power I destroyed. 00389_ Backup Propulsion I destroyed. 00389_ K-01 Serf destroyed. 00389_ S-10 Pest destroyed. 00390_ M-13 Machinist repairs G-47 Trooper. Map ----- +----------------------------------------------------+ | ##+#####/####### # [[ ##???????????"""######## | | #] [[ ##?????????????????????? | | # # [ ##?????????????????????? | | # + ##?????????????????????? | | ### ####### """ # ##?????????????????????? | | ### ####### """ # ##?????????????????????? | | ????####### """ #########?????????????????????? | | ????####### #########?????????????????????? | | ???? # ##????????????????????????????? | | ???? # """ ###??????"????????????????????? | | ???? # """ ###### "!"!"??????????????????? | | ???? # """ ##### ??????????????????? | | ???? + ??????????????????? | | ???? # < ?????????????????? | | ???? ### ??????????????????? | | ???? ### ##### ???????????????????? | | ??????## # ######???????????????????????? | | ??????## # ##???????????????????????????? | | ??????## # ##???????????????????????????? | | ??????##+###+## ##???????????????????????????? | | ?????? # ##???????????????????????????? | | ????????????? # ##???????????????????????????? | | ????????????? # ##???????????????????????????? | | ????????????? # ## # ##????????????? | | ?????????????"# ########+##### ##????????????? | | ?????????????"# !==*@ g ##????????????? | | ?????????????"# a %*%[[mg g ##????????????? | | ????????????? # s%%== ##????????????? | | ????????????? # #######+### ##????????????? | | ?????????????## ## # ? ##????????????? | | ???????????? ##?????? # ? # ????????????? | | ?????????? ##??????? # ????????????????? | | ????????? ##??????? # ????????????????? | | ???????? t #########??????? # ????????????????? | | ???????? #########??????????????????????????? | | ????????[[!!|????????????????????????????????????? | | ????????[[!!|????????????????????????????????????? | | ????????#####????????????????????????????????????? | | ????????#####????????????????????????????????????? | | ?????????????????????????????????????????????????? | | ?????????????????????????????????????????????????? | | ?????????????????????????????????????????????????? | | ?????????????????????????????????????????????????? | | ?????????????????????????????????????????????????? | | ?????????????????????????????????????????????????? | | ?????????????????????????????????????????????????? | | ?????????????????????????????????????????????????? | | ?????????????????????????????????????????????????? | | ?????????????????????????????????????????????????? | | ?????????????????????????????????????????????????? | +----------------------------------------------------+ Best States ------------- Heat Dissipation 25 Energy Generation 9 Energy Capacity 100 Matter Stores 300 Matter Capacity 300 Sight Range 17 Terrain Scan Density 10 Armor Coverage 160 Evasion (%) 50 Item Schematics ----------------- None Robot Schematics ------------------ None Fabricated ------------ Nothing Alien Tech Used ----------------- None Achievements -------------- None Challenges ------------ None RPGLIKE | -11 -10 --------- Run | Jun Mat Levels Raised . | . . XP Earned 4015 | 3000 1015 XP Spent 3000 | 3000 . Upgrades 5 | 5 . Utility Slot 3 | 3 . Weapon Slot 1 | 1 . Sight Range 1 | 1 . Protomatter Created 77 | . 77 Integrity Restored 180 | . 180 Core 180 | . 180 Protomatter Decayed . | . . Game ------ Seed SmartbombSegregatorPod Manual? 1 Play Time 00:07:52 Cumulative 344.6 hours Start 2023.02.20 @ 15:51:05 End 2023.02.20 @ 15:55:58 Sessions 1 Manual Loads 0 Difficulty Rogue Special Mode Winter2019/RPGLIKE Game No. 411 Rogue 411 Adventurer 0 Explorer 0 Win Type - Total 0 Types 0/0/0/0/0/0/0/0/0 Lore% 50 Gallery% 73 Achievement% 61 Wizard Run 0 Options --------- ASCII 0 Keyboard 0 Movement Mouse Keybinds 0 Fullscreen 2 Font 24/Smallcaps Map View 76x50 Tactical HUD 1 Map Filters NONE Filters NONE Steam 1 RUN: 7aa569da-136b-4252-9fee-62be98a6cde0